fUST/lending_fUST_20260202
["ID","MTS","AMOUNT","RATE_DAILY","PERIOD"]
[404233147,1769981118634,242.15909246,0.00036809,30]
[404233148,1769981119274,251.11897888,0.00036809,30]
[404233149,1769981119871,260.4103811,0.00036809,30]
[404233150,1769981120495,270.0455652,0.00036809,30]
[404233151,1769981121122,280.03725112,0.00036809,30]
[404233152,1769981121735,290.39862941,0.00036809,30]
[404233153,1769981122334,290.39862941,0.00036809,30]
[404233154,1769981134150,-441.15121332,0.00018848,2]
[404233161,1769981190505,3944.162225,0.00036809,120]
[404233162,1769981242595,569.69360528,0.00036809,30]
[404233164,1769981294789,286.71286249,0.00036809,30]
[404233165,1769981300785,289.69950431,0.0001,2]
[404233166,1769981303591,417.865143,0.00036809,120]
[404233167,1769981309633,179.21237408,0.00036809,120]
[404233168,1769981310977,479.34939466,0.00036809,120]
[404233169,1769981311020,1000.0,0.0001,2]
[404233170,1769981315589,205.80316873,0.00036809,120]
[404233171,1769981315806,177.40878824,0.00036809,120]
[404233179,1769981316715,182.84368994,0.00036809,120]
[404233180,1769981317401,333.33898217,0.00036809,120]
[404233181,1769981319434,176.45917904,0.00036809,30]
[404233182,1769981320757,154.71409206,0.00036809,60]
[404233183,1769981321959,381.1728878,0.00036809,30]
[404233184,1769981322809,503.38160251,0.00036809,31]
[404233186,1769981414254,151.0,0.00036809,30]
[404233187,1769981414868,156.587,0.00036809,30]
[404233188,1769981415504,162.380719,0.00036809,30]
[404233189,1769981416138,168.3888056,0.00036809,30]
[404233190,1769981416767,174.61919141,0.00036809,30]
[404233191,1769981417384,181.08010149,0.00036809,30]
[404233192,1769981417992,187.78006525,0.00036809,30]
[404233193,1769981418589,194.72792766,0.00036809,30]
[404233194,1769981419217,201.93286099,0.00036809,30]
[404233195,1769981419873,209.40437684,0.00036809,30]
[404233196,1769981420447,217.15233878,0.00036809,30]
[404233197,1769981421053,225.18697532,0.00036809,30]
[404233198,1769981421688,233.51889341,0.00036809,30]
[404233199,1769981422291,242.15909246,0.00036809,30]
[404233200,1769981422902,251.11897888,0.00036809,30]
[404233201,1769981423509,260.4103811,0.00036809,30]
[404233202,1769981424122,270.0455652,0.00036809,30]
[404233203,1769981425322,280.03725112,0.00036809,30]
[404233204,1769981426001,290.39862941,0.00036809,30]
[404233205,1769981426648,290.39862941,0.00036809,30]
[404233242,1769981431527,-444.54488708,0.00017469,2]
[404233321,1769981437673,-755.45511292,0.00017469,2]
[404233322,1769981437682,-8001.99831204,0.0001747,2]
[404233323,1769981437691,-677.0,0.0001747,2]
[404233324,1769981437700,-150.0,0.00018754,2]
[404233325,1769981437710,-740.74221401,0.00018883,2]
[404233326,1769981437724,-851.0,0.00019165,2]
[404233327,1769981437734,-300.0,0.00019999,2]
[404233328,1769981437743,-372.33065389,0.0002,2]
[404233329,1769981437752,-23000.0,0.0002,2]
[404233330,1769981437762,-203.12723285,0.0002,2]
[404233331,1769981437770,-505.26034948,0.0002,2]
[404233332,1769981437779,-600.0,0.00020399,2]
[404233333,1769981437789,-177.0,0.00020754,2]
[404233334,1769981437798,-420.0,0.00021777,2]
[404233335,1769981437808,-720.0,0.00022439,10]
[404233336,1769981437818,-204.0,0.00022754,2]
[404233337,1769981437827,-300.33975952,0.00024,2]
[404233338,1769981437836,-480.0,0.00024683,10]
[404233339,1769981437846,-4060.33,0.00024754,2]
[404233340,1769981437856,-231.0,0.00024754,2]
[404233341,1769981437865,-1590.3989036,0.00026,30]
[404233342,1769981437875,-335.0,0.00026809,3]
[404233343,1769981437884,-335.0,0.00026809,3]
[404233344,1769981437894,-335.0,0.00026809,3]
[404233345,1769981437904,-335.0,0.00026809,3]
[404233346,1769981437914,-335.0,0.00026809,3]
[404233347,1769981437924,-335.0,0.00026809,3]
[404233348,1769981437934,-335.0,0.00026809,3]
[404233349,1769981437943,-335.0,0.00026809,3]
[404233350,1769981437953,-335.0,0.00026809,3]
[404233351,1769981437962,-335.0,0.00026809,3]
[404233352,1769981437974,-335.0,0.00026809,3]
[404233353,1769981437983,-335.0,0.00026809,3]
[404233354,1769981437992,-335.0,0.00026809,3]
[404233355,1769981438001,-180.08463978,0.00032647,9]
[404233356,1769981438010,-1957.856,0.00033185,2]
[404233357,1769981438020,-1000.0,0.00033206,120]
[404233358,1769981438029,-1000.0,0.00033206,120]
[404233359,1769981438039,-190.14978287,0.00033206,2]
[404233360,1769981438049,-342.26960917,0.00033206,2]
[404233361,1769981438059,-447.26754169,0.00033206,2]
[404233362,1769981438068,-1329.36716051,0.0003324,2]
[404233363,1769981438077,-1000.0,0.00033616,120]
[404233364,1769981438086,-500.0,0.00033953,7]
[404233365,1769981438095,-500.0,0.00033953,7]
[404233366,1769981438104,-500.0,0.00033953,7]
[404233367,1769981438114,-500.0,0.00033953,7]
[404233368,1769981438123,-548.3582944,0.00033953,7]
[404233369,1769981438132,-500.0,0.00033953,7]
[404233370,1769981438143,-500.0,0.00033953,7]
[404233371,1769981438152,-500.0,0.00033953,7]
[404233372,1769981438164,-500.0,0.00033953,7]
[404233373,1769981438173,-500.0,0.00033953,7]
[404233374,1769981438183,-500.0,0.00033953,7]
[404233375,1769981438193,-33.04473073,0.00033953,7]
[404233376,1769981438204,-466.95526927,0.00033953,7]
[404233377,1769981438213,-156.02728409,0.00033953,7]
[404233378,1769981438227,-500.0,0.00033953,7]
[404233379,1769981438237,-500.0,0.00033953,7]
[404233380,1769981438246,-500.0,0.00033953,7]
[404233381,1769981438256,-547.43211692,0.00033953,7]
[404233382,1769981438266,-297.16957084,0.00033953,7]
[404233383,1769981438275,-500.0,0.00033953,7]
[404233384,1769981438284,-500.0,0.00033953,7]
[404233385,1769981438293,-500.0,0.00033953,7]
[404233386,1769981438303,-500.0,0.00033953,7]
[404233387,1769981438312,-500.0,0.00033953,7]
[404233388,1769981438321,-500.0,0.00033953,7]
[404233389,1769981438331,-500.0,0.00033953,7]
[404233390,1769981438340,-500.0,0.00033953,7]
[404233391,1769981438350,-500.0,0.00033953,7]
[404233392,1769981438359,-500.0,0.00033953,7]
[404233393,1769981438368,-500.0,0.00033953,7]
[404233394,1769981438378,-500.0,0.00033953,7]
[404233395,1769981438388,-500.0,0.00033953,7]
[404233396,1769981438397,-500.0,0.00033953,7]
[404233397,1769981438406,-500.0,0.00033953,7]
[404233398,1769981438415,-630.0,0.00033954,2]
[404233399,1769981438425,-179.0,0.00033954,2]
[404233400,1769981438435,-740.74221401,0.00033988,7]
[404233401,1769981438444,-168.0,0.00034136,2]
[404233402,1769981438454,-168.0,0.00034244,2]
[404233403,1769981438463,-1041.66666667,0.00034676,2]
[404233404,1769981438477,-939.23,0.0003499,10]
[404233405,1769981438486,-782.69,0.0003499,10]
[404233406,1769981438496,-8327.13666,0.00035,2]
[404233407,1769981438508,-446.03775753,0.00035,2]
[404233408,1769981438519,-599.78745696,0.00035,2]
[404233409,1769981438530,-6267.51897317,0.00035,2]
[404233447,1769981439886,-1437.29746005,0.00035,2]
[404233449,1769981439897,-254.01130894,0.00035,2]
[404233455,1769981439944,-70321.56473155,0.00035,2]
[404233727,1769981444696,-652.25,0.0003499,10]
[404233729,1769981444705,-642.99355765,0.00035,2]
[404233730,1769981444721,-708.622086,0.00035,2]
[404233731,1769981444735,-5526.53394388,0.00035,2]
[404233743,1769981445615,-6020.49077336,0.00035,2]
[404233745,1769981445626,-546.81039715,0.00035,2]
[404233747,1769981445637,-564.67278926,0.00035,2]
[404233749,1769981445648,-1629.86680591,0.00035,2]
[404233757,1769981445913,-24720.56909058,0.00035,2]
[404233758,1769981445924,-3133.4079152,0.00035,2]
[404233771,1769981889952,10000.01,0.0001,2]
[404233772,1769981889975,10000.01,0.0001,2]
[404233773,1769981889997,5158.98,0.0001,2]
[404233775,1769982013569,151.0,0.0003681,30]
[404233776,1769982014187,156.587,0.0003681,30]
[404233777,1769982014810,162.380719,0.0003681,30]
[404233778,1769982015452,168.3888056,0.0003681,30]
[404233779,1769982016107,174.61919141,0.0003681,30]
[404233780,1769982016726,181.08010149,0.0003681,30]
[404233781,1769982017344,187.78006525,0.0003681,30]
[404233782,1769982017973,194.72792766,0.0003681,30]
[404233783,1769982018621,201.93286099,0.0003681,30]
[404233784,1769982019219,209.40437684,0.0003681,30]
[404233785,1769982019810,217.15233878,0.0003681,30]
[404233786,1769982020943,225.18697532,0.0003681,30]
[404233787,1769982021580,233.51889341,0.0003681,30]
[404233788,1769982022216,242.15909246,0.0003681,30]
[404233789,1769982022838,251.11897888,0.0003681,30]
[404233790,1769982023498,260.4103811,0.0003681,30]
[404233791,1769982024125,270.0455652,0.0003681,30]
[404233792,1769982024729,280.03725112,0.0003681,30]
[404233793,1769982025452,290.39862941,0.0003681,30]
[404233794,1769982026106,290.39862941,0.0003681,30]
[404233798,1769982344109,-150.0,0.00013141,2]
[404233799,1769982344130,-499.73739008,0.00013273,2]
[404233800,1769982344150,-300.0,0.00013673,2]
[404233801,1769982344171,-177.0,0.00015141,2]
[404233802,1769982344195,-204.0,0.00017141,2]
[404233803,1769982344219,-231.0,0.00019141,2]
[404233804,1769982344267,-258.0,0.00021141,2]
[404233805,1769982344288,-240.90679558,0.00022928,2]
[404233806,1769982426084,-419.96511608,0.00022673,2]
[404233807,1769982426105,-278.51445268,0.00022902,2]
[404233808,1769982613214,151.0,0.0003681,30]
[404233809,1769982613830,156.587,0.0003681,30]
[404233810,1769982614426,162.380719,0.0003681,30]
[404233811,1769982615049,168.3888056,0.0003681,30]
[404233812,1769982615697,174.61919141,0.0003681,30]
[404233813,1769982616321,181.08010149,0.0003681,30]
[404233814,1769982616943,187.78006525,0.0003681,30]
[404233815,1769982617545,194.72792766,0.0003681,30]
[404233816,1769982618150,201.93286099,0.0003681,30]
[404233817,1769982618781,209.40437684,0.0003681,30]
[404233818,1769982619398,217.15233878,0.0003681,30]
[404233819,1769982619999,225.18697532,0.0003681,30]
[404233820,1769982620608,233.51889341,0.0003681,30]
[404233821,1769982621254,242.15909246,0.0003681,30]
[404233822,1769982621887,251.11897888,0.0003681,30]
[404233823,1769982622536,260.4103811,0.0003681,30]
[404233824,1769982623170,270.0455652,0.0003681,30]
[404233825,1769982623809,280.03725112,0.0003681,30]
[404233826,1769982624426,290.39862941,0.0003681,30]
[404233827,1769982625044,290.39862941,0.0003681,30]
[404233889,1769982631794,-665.05160848,0.00022621,2]
[404233891,1769982631805,-4334.94839152,0.00022621,2]
[404233893,1769982631814,-771.0,0.00022621,2]
[404233895,1769982631823,-1041.66666667,0.00022824,2]
[404233897,1769982631833,-150.0,0.00023008,2]
[404233899,1769982631842,-270.0,0.00025008,2]
[404233901,1769982631851,-1200.0,0.00026574,2]
[404233903,1769982631861,-164.0,0.00026847,2]
[404233905,1769982631871,-300.0,0.00026847,2]
[404233907,1769982631880,-300.0,0.00026847,2]
[404233909,1769982631890,-768.304999,0.00032,120]
[404233911,1769982631899,-151.75939228,0.000332,117]
[404233913,1769982631908,-740.74221401,0.00033376,2]
[404233915,1769982631918,-250.29975184,0.00033953,7]
[404233917,1769982631927,-630.0,0.00033954,2]
[404233919,1769982631936,-167.360785,0.00034063,2]
[404233920,1769982631944,-9534.3529981,0.00034615,2]
[404233921,1769982631953,-114.72165358,0.00034899,2]
[404233935,1769982637828,-810.63698263,0.00034899,2]
[404233937,1769982637888,-1635.14094649,0.00034899,2]
[404233938,1769982637898,-276.267,0.0003499,40]
[404233939,1769982637907,-543.54,0.0003499,10]
[404233940,1769982637916,-452.95,0.0003499,10]
[404233941,1769982637926,-377.46,0.0003499,10]
[404233942,1769982637935,-476.09720444,0.00034999,7]
[404233943,1769982637944,-197.71209765,0.00034999,7]
[404233944,1769982637953,-202.78990062,0.00034999,7]
[404233945,1769982637963,-500.0,0.00034999,7]
[404233946,1769982637972,-500.0,0.00034999,7]
[404233947,1769982637981,-500.0,0.00034999,7]
[404233948,1769982637991,-500.0,0.00034999,7]
[404233949,1769982637999,-525.03404007,0.00034999,7]
[404233950,1769982638009,-500.0,0.00034999,7]
[404233951,1769982638019,-500.0,0.00034999,7]
[404233952,1769982638028,-500.0,0.00034999,7]
[404233953,1769982638038,-500.0,0.00034999,7]
[404233954,1769982638047,-500.0,0.00034999,7]
[404233955,1769982638057,-500.0,0.00034999,7]
[404233956,1769982638066,-500.0,0.00034999,7]
[404233957,1769982638076,-376.69025798,0.00034999,7]
[404233958,1769982638085,-465.97415334,0.00034999,7]
[404233959,1769982638094,-500.0,0.00034999,7]
[404233960,1769982638104,-301.60230419,0.00034999,7]
[404233961,1769982638113,-27519.78876189,0.00035,2]
[404234411,1769982646048,-5000.0,0.00024953,2]
[404234412,1769982646058,-9031.6541591,0.00035,2]
[404234427,1769982913909,151.0,0.00036809,30]
[404234428,1769982914607,156.587,0.00036809,30]
[404234429,1769982915229,162.380719,0.00036809,30]
[404234430,1769982915846,168.3888056,0.00036809,30]
[404234431,1769982916460,174.61919141,0.00036809,30]
[404234432,1769982917113,181.08010149,0.00036809,30]
[404234433,1769982917729,187.78006525,0.00036809,30]
[404234434,1769982918366,194.72792766,0.00036809,30]
[404234435,1769982918971,201.93286099,0.00036809,30]
[404234436,1769982919602,209.40437684,0.00036809,30]
[404234437,1769982920211,217.15233878,0.00036809,30]
[404234438,1769982920814,225.18697532,0.00036809,30]
[404234439,1769982921430,233.51889341,0.00036809,30]
[404234440,1769982922467,242.15909246,0.00036809,30]
[404234441,1769982923115,251.11897888,0.00036809,30]
[404234442,1769982923728,260.4103811,0.00036809,30]
[404234443,1769982924341,270.0455652,0.00036809,30]
[404234444,1769982924983,280.03725112,0.00036809,30]
[404234445,1769982925607,290.39862941,0.00036809,30]
[404234446,1769982926246,290.39862941,0.00036809,30]
[404234449,1769983280749,8000.30842382,0.00036811,30]
[404234460,1769983411603,151.0,0.00036811,30]
[404234461,1769983412176,151.30445,0.00036811,30]
[404234462,1769983525344,151.0,0.00036811,31]
[404234463,1769983526077,151.0,0.00036811,31]
[404234464,1769983528975,151.0,0.00036811,31]
[404234465,1769983529213,151.0,0.00036811,31]
[404234466,1769983529487,151.0,0.00036811,31]
[404234467,1769983529787,151.0,0.00036811,31]
[404234468,1769983530081,151.0,0.00036811,31]
[404234469,1769983530364,151.0,0.00036811,31]
[404234470,1769983530642,229.693305,0.00036811,31]
[404234475,1769983539308,-608.0,0.00013272,2]
[404234476,1769983539327,-300.0,0.00013272,2]
[404234477,1769983539348,-300.0,0.00013272,2]
[404234478,1769983539370,-522.26497965,0.00013272,2]
[404234482,1769983569586,151.0,0.00036811,31]
[404234485,1769983569979,151.0,0.00036811,31]
[404234486,1769983570230,151.0,0.00036811,31]
[404234487,1769983570578,151.0,0.00036811,31]
[404234489,1769983570911,151.0,0.00036811,31]
[404234490,1769983571242,151.0,0.00036811,31]
[404234491,1769983571537,151.0,0.00036811,31]
[404234494,1769983571830,151.0,0.00036811,31]
[404234495,1769983572131,151.0,0.00036811,31]
[404234496,1769983572416,181.899836,0.00036811,31]
[404234497,1769983590828,151.0,0.00036811,31]
[404234498,1769983591089,162.081383,0.00036811,31]
[404234499,1769983594049,253.531712,0.00036811,31]
[404234502,1769983635150,-677.73502035,0.00013272,2]
[404234503,1769983635170,-300.0,0.00013272,2]
[404234504,1769983635190,-150.0,0.00013272,2]
[404234505,1769983635210,-260.56664154,0.00013273,2]
[404234506,1769983635228,-358.6231664,0.00013273,2]
[404234507,1769983642602,151.0,0.00036811,31]
[404234508,1769983643201,151.0,0.00036811,31]
[404234509,1769983643514,164.402729,0.00036811,31]
[404234510,1769983652800,151.0,0.00036811,31]
[404234511,1769983653092,151.0,0.00036811,31]
[404234512,1769983653370,162.44721,0.00036811,31]
[404234516,1769983713077,151.0,0.00036811,31]
[404234517,1769983713397,151.0,0.00036811,31]
[404234518,1769983713744,151.0,0.00036811,31]
[404234519,1769983714022,278.229266,0.00036811,31]
[404234520,1769983717195,257.770566,0.00036811,31]
[404234521,1769983764518,235.081969,0.00036811,31]
[404234522,1769983765117,235.081969,0.00036811,31]
[404234523,1769983765416,235.081969,0.00036811,31]
[404234524,1769983765696,235.081969,0.00036811,31]
[404234525,1769983765980,235.081969,0.00036811,31]
[404234526,1769983766263,235.081969,0.00036811,31]
[404234527,1769983766539,235.081969,0.00036811,31]
[404234528,1769983766913,235.081969,0.00036811,31]
[404234529,1769983767255,235.081969,0.00036811,31]
[404234530,1769983767577,235.081969,0.00036811,31]
[404234531,1769983767863,235.081969,0.00036811,31]
[404234532,1769983768157,235.081969,0.00036811,31]
[404234533,1769983768491,235.081969,0.00036811,31]
[404234534,1769983768815,235.081969,0.00036811,31]
[404234535,1769983769127,235.081969,0.00036811,31]
[404234536,1769983769417,235.081969,0.00036811,31]
[404234537,1769983769934,235.081969,0.00036811,31]
[404234538,1769983770261,235.081969,0.00036811,31]
[404234539,1769983770605,235.081969,0.00036811,31]
[404234540,1769983770884,235.081973,0.00036811,31]
[404234541,1769983771213,151.0,0.00036811,31]
[404234542,1769983771620,151.0,0.00036811,31]
[404234543,1769983792952,173.748602,0.00036811,31]
[404234544,1769983793246,173.748602,0.00036811,31]
[404234545,1769983793547,173.748602,0.00036811,31]
[404234546,1769983794132,173.748602,0.00036811,31]
[404234547,1769983794481,173.748602,0.00036811,31]
[404234548,1769983794788,173.748602,0.00036811,31]
[404234549,1769983795059,173.748602,0.00036811,31]
[404234550,1769983795372,173.748602,0.00036811,31]
[404234551,1769983795646,173.748602,0.00036811,31]
[404234552,1769983795928,173.748602,0.00036811,31]
[404234553,1769983796210,173.748602,0.00036811,31]
[404234554,1769983796491,173.748602,0.00036811,31]
[404234555,1769983796791,173.748602,0.00036811,31]
[404234556,1769983797076,173.748602,0.00036811,31]
[404234557,1769983797347,173.748602,0.00036811,31]
[404234558,1769983797629,173.748602,0.00036811,31]
[404234559,1769983797900,173.748602,0.00036811,31]
[404234560,1769983798188,173.748602,0.00036811,31]
[404234561,1769983798764,173.748602,0.00036811,31]
[404234562,1769983799050,173.748594,0.00036811,31]
[404234563,1769983822562,151.0,0.00036811,31]
[404234564,1769983822798,151.0,0.00036811,31]
[404234565,1769983823089,151.0,0.00036811,31]
[404234566,1769983823392,202.082243,0.00036811,31]
[404234567,1769983826606,151.0,0.00036811,31]
[404234568,1769983826949,151.0,0.00036811,31]
[404234569,1769983827246,151.0,0.00036811,31]
[404234570,1769983827565,151.0,0.00036811,31]
[404234571,1769983827860,151.0,0.00036811,31]
[404234572,1769983828210,151.0,0.00036811,31]
[404234573,1769983828497,151.0,0.00036811,31]
[404234574,1769983829083,151.0,0.00036811,31]
[404234575,1769983829389,151.0,0.00036811,31]
[404234576,1769983829692,151.0,0.00036811,31]
[404234577,1769983830030,151.0,0.00036811,31]
[404234578,1769983830425,151.0,0.00036811,31]
[404234579,1769983830740,151.0,0.00036811,31]
[404234580,1769983831040,151.0,0.00036811,31]
[404234581,1769983831328,151.0,0.00036811,31]
[404234592,1769983831634,155.537498,0.00036811,31]
[404234607,1769983831894,-141.3768336,0.00013273,2]
[404234609,1769983831903,-500.0,0.00013273,2]
[404234611,1769983831913,-500.0,0.00013273,2]
[404234613,1769983831922,-500.0,0.00013273,2]
[404234615,1769983831931,-150.0,0.00013936,2]
[404234617,1769983831941,-1200.0,0.00014598,2]
[404234619,1769983831951,-177.0,0.00015936,2]
[404234621,1769983831960,-175.0,0.00016058,2]
[404234623,1769983831969,-204.0,0.00017936,2]
[404234625,1769983831978,-231.0,0.00019936,2]
[404234627,1769983831988,-243.0,0.00021936,2]
[404234629,1769983831998,-300.0,0.00024082,2]
[404234631,1769983832007,-288.37382812,0.00024083,30]
[404234633,1769983832018,-541.8977633,0.00024083,30]
[404234635,1769983832029,-169.72840858,0.00024083,30]
[404234637,1769983832039,-544.42071765,0.00024085,2]
[404234668,1769983838053,-196.32149636,0.00024085,2]
[404234669,1769983838063,-300.0,0.00024563,10]
[404234670,1769983838072,-420.0,0.00026113,2]
[404234671,1769983838081,-360.0,0.00028316,2]
[404234672,1769983838090,-1008.4947996,0.00029714,2]
[404234673,1769983838099,-2794.85037071,0.00032673,2]
[404234674,1769983838111,-8044.01646879,0.00032673,2]
[404234675,1769983838120,-151.75939225,0.000332,117]
[404234676,1769983838130,-150.0,0.00033749,7]
[404234677,1769983838139,-166.04166341,0.00033749,7]
[404234679,1769983838148,-150.0,0.00033749,7]
[404234681,1769983838157,-169.10603538,0.00033749,7]
[404234683,1769983838166,-150.0,0.00033749,7]
[404234685,1769983838175,-150.0,0.00033749,7]
[404234686,1769983838184,-150.0,0.0003385,7]
[404234687,1769983838194,-293.78825277,0.0003385,7]
[404234688,1769983838204,-150.0,0.0003385,7]
[404234689,1769983838213,-150.0,0.0003385,7]
[404234690,1769983838222,-150.0,0.0003385,7]
[404234691,1769983838232,-200.0,0.0003385,7]
[404234692,1769983838243,-200.0,0.0003385,7]
[404234693,1769983838253,-200.0,0.0003385,7]
[404234694,1769983838262,-150.0,0.00033886,7]
[404234695,1769983838271,-150.0,0.00033886,7]
[404234696,1769983838281,-150.0,0.00033886,7]
[404234697,1769983838291,-150.0,0.00033886,7]
[404234698,1769983838300,-2240.43713488,0.00033923,2]
[404234699,1769983838310,-179.0,0.00033954,2]
[404234700,1769983838319,-150.0,0.00033987,7]
[404234701,1769983838328,-150.0,0.00033987,7]
[404234702,1769983838338,-150.0,0.00033987,7]
[404234703,1769983838347,-150.0,0.00033987,7]
[404234704,1769983838357,-150.0,0.00034023,7]
[404234705,1769983838366,-150.0,0.00034023,7]
[404234706,1769983838375,-200.0,0.00034023,7]
[404234707,1769983838385,-200.0,0.00034023,7]
[404234708,1769983838394,-500.0,0.00034023,7]
[404234709,1769983838404,-500.0,0.00034023,7]
[404234710,1769983838413,-500.0,0.00034023,7]
[404234711,1769983838423,-500.0,0.00034023,7]
[404234712,1769983838432,-500.0,0.00034023,7]
[404234713,1769983838441,-500.0,0.00034023,7]
[404234714,1769983838451,-500.0,0.00034023,7]
[404234715,1769983838460,-500.0,0.00034023,7]
[404234716,1769983838470,-500.0,0.00034023,7]
[404234717,1769983838479,-500.0,0.00034023,7]
[404234718,1769983838490,-645.0,0.00034023,7]
[404234719,1769983838499,-500.0,0.00034023,7]
[404234720,1769983838508,-500.0,0.00034023,7]
[404234721,1769983838518,-500.0,0.00034023,7]
[404234722,1769983838527,-500.0,0.00034023,7]
[404234723,1769983838536,-500.0,0.00034023,7]
[404234724,1769983838545,-500.0,0.00034023,7]
[404234725,1769983838638,-500.0,0.00034023,7]
[404234726,1769983838648,-500.0,0.00034023,7]
[404234727,1769983838658,-500.0,0.00034023,7]
[404234728,1769983838668,-500.0,0.00034023,7]
[404234729,1769983838677,-500.0,0.00034023,7]
[404234730,1769983838686,-500.0,0.00034023,7]
[404234731,1769983838696,-500.0,0.00034023,7]
[404234732,1769983838705,-375.79113498,0.00034023,7]
[404234733,1769983838715,-500.0,0.00034023,7]
[404234734,1769983838724,-500.0,0.00034023,7]
[404234735,1769983838734,-500.0,0.00034023,7]
[404234736,1769983838744,-740.74221401,0.00034023,7]
[404234737,1769983838753,-500.0,0.00034023,7]
[404234738,1769983838763,-500.0,0.00034023,7]
[404234739,1769983838772,-500.0,0.00034023,7]
[404234740,1769983838781,-500.0,0.00034023,7]
[404234741,1769983838791,-162.6690258,0.00034023,7]
[404234742,1769983838800,-265.172,0.00034025,37]
[404234743,1769983838810,-150.0,0.00034124,7]
[404234744,1769983838819,-200.0,0.00034124,7]
[404234745,1769983838833,-200.0,0.00034124,7]
[404234746,1769983838843,-150.0,0.00034124,7]
[404234747,1769983838852,-150.0,0.0003416,7]
[404234748,1769983838861,-257.54731196,0.0003416,7]
[404234749,1769983838870,-150.0,0.00034261,7]
[404234750,1769983838880,-250.0,0.00034261,7]
[404234751,1769983838889,-150.0,0.00034297,7]
[404234752,1769983838898,-150.0,0.00034398,7]
[404234753,1769983838908,-165.41821725,0.00034434,7]
[404234754,1769983838917,-194.76896807,0.00034535,7]
[404234755,1769983838926,-314.55,0.0003499,10]
[404234756,1769983838936,-28.93750702,0.0003499,10]
[404234828,1769983840649,151.0,0.00036811,31]
[404234838,1769983840940,151.0,0.00036811,31]
[404234875,1769983841296,151.0,0.00036811,31]
[404234906,1769983841585,151.0,0.00036811,31]
[404234936,1769983841871,151.0,0.00036811,31]
[404234966,1769983842151,151.0,0.00036811,31]
[404234996,1769983842436,151.0,0.00036811,31]
[404235044,1769983842718,151.0,0.00036811,31]
[404235074,1769983843007,151.0,0.00036811,31]
[404235105,1769983843305,151.0,0.00036811,31]
[404235137,1769983843618,151.0,0.00036811,31]
[404235168,1769983843917,151.0,0.00036811,31]
[404235197,1769983844202,151.0,0.00036811,31]
[404235231,1769983844526,151.0,0.00036811,31]
[404235258,1769983844786,151.0,0.00036811,31]
[404235278,1769983845087,267.113778,0.00036811,31]
[404235349,1769983846360,-849.0,0.00034998,7]
[404235351,1769983846369,-257.63335374,0.00034999,7]
[404235353,1769983846379,-500.0,0.00034999,120]
[404235355,1769983846388,-425.02120771,0.00034999,120]
[404235357,1769983846397,-562.95575804,0.00034999,7]
[404235359,1769983846406,-333.2680431,0.00034999,7]
[404235361,1769983846416,-3222.27163758,0.00035,2]
[404235364,1769983846863,-10004.49989999,0.00035,2]
[404235365,1769983862388,3527.57397191,0.00011841,2]
[404235366,1769983868142,151.0,0.00036811,31]